Cogmind - Beta 15 @@@ ROGUE MODE // 2025.05.18 @ 19:41:42 Player: VT-MNC Result: Destroyed by Autobeam Turret with Autobeam Performance ------------- Evolutions (0) 0 Regions Visited (2) 400 Robots Destroyed (43) 215 Value Destroyed (1019) 1019 Prototype IDs (1) 20 Alien Tech Used (0) 0 Bonus (0) 0 TOTAL SCORE: 1654 Bonus ------- None Cogmind --------- Core Integrity 0/250 Matter 192/300 Energy 100/100 System Corruption 1% Temperature Cool (18) Movement Treading (240) Ox1 Location -10/Subcaves Parts ------- > --- POWER (1) -------- Subdweller Power Source > --- PROPULSION (2) --- Light Treads Light Treads > --- UTILITY (2) ------ High-capacity Storage Unit Seismic Detector > --- WEAPON (2) ------- Subdweller Laser Mini Grenade Launcher > --- INVENTORY (20) --- Light Treads Light Treads Spiked Treads Subdweller Monowheel Improved Heat Sink Subdweller Optics Sensor Array Signal Interpreter Improved Terrain Scanner Hardened Light Armor Plating Hardened Light Armor Plating Hardened Light Armor Plating Scrap Shield Beam Cannon Shotgun Shotgun Subdweller Machine Gun Multitool Heavy Hammer Peak State ------------ > --- POWER ------------ Cooled Ion Engine > --- PROPULSION ------- Light Treads Spiked Treads > --- UTILITY ---------- High-capacity Storage Unit Hardened Light Armor Plating > --- WEAPON ----------- Subdweller Laser Shotgun > --- INVENTORY -------- Light Treads Light Treads Light Treads Improved Heat Sink Sensor Array Signal Interpreter Improved Terrain Scanner Seismic Detector Salvage Targeting Computer Salvage Targeting Computer Hardened Light Armor Plating Hardened Light Armor Plating Beam Cannon Assault Rifle Assault Rifle Shotgun Mini Grenade Launcher Mini Grenade Launcher Heavy Hammer [Rating: 16] Favorites ----------- Power Cooled Ion Engine Engine Cooled Ion Engine Propulsion Light Treads Treads Light Treads Leg Aluminum Leg Wheel Wheel Utility High-capacity Storage Unit Device Seismic Detector Storage High-capacity Storage Unit Protection Hardened Light Armor Plating Weapon Assault Rifle Energy Gun Subdweller Laser Energy Cannon Beam Cannon Ballistic Gun Assault Rifle Launcher Mini Grenade Launcher Special Weapon Mining Laser Impact Weapon Heavy Hammer Build | -11 -10 -10 ------- Run | Yrd Mat Sub Slots Evolved . | . . . Power . | . . . Propulsion . | . . . Utility . | . . . Weapon . | . . . Parts Attached 34 | 3 17 14 Power 3 | . 2 1 Engine 3 | . 2 1 Core . | . . . Reactor . | . . . Propulsion 11 | 2 5 4 Treads 7 | 2 1 4 Leg 2 | . 2 . Wheel 2 | . 2 . Hover . | . . . Flight . | . . . Utility 8 | 1 4 3 Device 3 | 1 . 2 Storage 1 | . 1 . Processor . | . . . Hackware . | . . . Protection 4 | . 3 1 Artifact . | . . . Weapon 12 | . 6 6 Energy Gun 1 | . . 1 Energy Cannon 2 | . 1 1 Ballistic Gun 5 | . 2 3 Ballistic Cannon . | . . . Launcher 2 | . 1 1 Special Weapon 1 | . 1 . Impact Weapon 1 | . 1 . Slashing Weapon . | . . . Piercing Weapon . | . . . Special Melee Weapon . | . . . Unidentified Prototypes 1 | . 1 . Parts Lost 6 | . 1 5 Power 1 | . . 1 Propulsion 2 | . 1 1 Utility . | . . . Weapon 3 | . . 3 Highest Loss Streak 3 | . 1 3 To Critical Strikes 1 | . . 1 Average Backups 18 | 6 18 19 Power . | 1 . . Propulsion 3 | 4 2 3 Utility 9 | . 9 8 Weapon 5 | 1 5 6 Tool/Special . | . . . Unused Backups 24 | 4 9 11 Power 5 | 1 4 . Propulsion 3 | . 1 2 Utility 13 | 1 4 8 Weapon 2 | 2 . . Tool/Special 1 | . . 1 Average Slot Usage (%) 99 | . 99 99 Engine 13 | . 14 13 Treads 21 | . 21 22 Wheel 5 | . 5 5 Device 6 | . 4 8 Storage 14 | . 14 14 Protection 7 | . 9 5 Energy Gun 2 | . . 5 Energy Cannon 6 | . 4 7 Ballistic Gun 13 | . 18 8 Launcher 1 | . 1 2 Impact Weapon 2 | . 2 2 Peak Build Rating 16 | 8 14 16 Average Rating 12 | 6 12 13 On Entrance 9 | 6 8 13 Naked Turns . | . . . Heaviest Build 64 | 13 58 64 Greatest Support 40 | 40 40 40 Greatest Overweight (x) 5 | . 3 5 Average Overweight (x) 2 | . 1 2 Largest Inventory Capacity 20 | 8 20 20 Average Capacity 19 | 8 19 20 Most Carried 20 | 8 20 20 Average Carried 18 | 6 18 19 Final Capacity 20 | 8 20 20 Final Carried 20 | 8 20 20 Class Distribution -------------------- 98% | Mutant Dominant Class ---------------- Mutant | -10/Materials Mutant | -10/Subcaves Resources | -11 -10 -10 ----------- Run | Yrd Mat Sub Matter Collected 1457 | 266 661 530 Remotely . | . . . Salvage Created 1478 | 114 1005 359 Parts 81 | 5 51 25 Haulers Intercepted 2 | . 2 . Recyclers Shooed 1 | . 1 . Parts Field Recycled . | . . . Retrieved Matter . | . . . Parts Self-Destructed 4 | . . 4 Prevented . | . . . Kills | -11 -10 -10 ------- Run | Yrd Mat Sub Combat Hostiles Destroyed 27 | . 17 10 Melee 1 | . 1 . Guns 8 | . 4 4 Cannons 11 | . 7 4 AOE 7 | . 5 2 Classes Destroyed 12 | 2 7 3 Worker 3 | . 3 . Builder 1 | . 1 . Tunneler 3 | 2 1 . Hauler 2 | . 2 . Recycler 4 | 1 3 . Operator 1 | . 1 . Watcher 2 | . 2 . Swarmer 4 | . 3 1 Grunt 14 | . 14 . Sentry 1 | . . 1 Artisan 1 | . . 1 Subdweller 8 | . . 8 Best Kill Streak 5 | 2 5 3 Combat Bots Only 3 | . 3 3 Max Kills in Single Turn 2 | 1 2 1 Gunslinging . | . . . Exploded 1 | . 1 1 Melee 1 | . 1 . Uniques/NPCs Destroyed . | . . . Combat | -11 -10 -10 -------- Run | Yrd Mat Sub Hostile Shots Fired 145 | . 91 54 Missed 31 | . 17 14 Hits 114 | . 74 40 Projectile 114 | . 74 40 AOE 5 | . . 5 Critical Strikes 3 | . . 3 Damage Taken 2134 | . 935 1199 Core 253 | . 135 118 Absorbed by Shields . | . . . Regen/Repaired (Parts) 117 | . 117 . Core Remaining (%) 100 | 100 . . Volleys Fired 114 | 12 70 32 Largest 2 | 2 2 2 Hottest 120 | 40 100 120 Shots Fired 207 | 24 129 54 Gun 135 | 24 82 29 Cannon 57 | . 38 19 Launcher 11 | . 8 3 Special 4 | . 1 3 Kinetic 125 | 24 82 19 Thermal 71 | . 39 32 Explosive 11 | . 8 3 Electromagnetic . | . . . Robot Hit Streak 10 | 5 10 8 Robot Miss Streak 4 | 3 4 2 Penetration Max . | . . . Secondary Targets . | . . . Shots Hit Robots 116 | 12 72 32 Core Hits 64 | 4 42 18 Critical Kills 1 | . . 1 Critical Parts Destroyed . | . . . Critical Strikes 2 | . . 2 Destroy 2 | . . 2 Melee Attacks 18 | . 8 10 Impact 18 | . 8 10 Slashing . | . . . Piercing . | . . . Sneak Attacks . | . . . Combat Hostiles . | . . . Follow-up Attacks . | . . . Damage Inflicted 2617 | 151 1680 786 Guns 1037 | 151 583 303 Cannons 787 | . 420 367 Explosions 643 | . 527 116 Melee 144 | . 144 . Ramming 6 | . 6 . Kinetic 974 | 151 583 240 Thermal 850 | . 420 430 Explosive 643 | . 527 116 Electromagnetic . | . . . Impact 144 | . 144 . Slashing . | . . . Piercing . | . . . Highest Corruption 1 | . 1 1 Average Corruption 1 | . 1 1 Corruption Purged . | . . . Corruption Blocked . | . . . Effects 30 | . 18 12 Message Errors 7 | . 5 2 Matter Fused 8 | . 6 2 Heat Flow Errors 4 | . 2 2 Energy Discharges 4 | . 1 3 Parts Rejected 1 | . 1 . Parts Fused 2 | . 1 1 Data Loss (minor) 3 | . 2 1 Misfires 1 | . . 1 Overload Shots . | . . . Overflow Damage 11 | . 11 . Projectiles . | . . . Explosions 8 | . 8 . Melee 3 | . 3 . Knockbacks . | . . . Impact . | . . . Kinetic . | . . . Secondary . | . . . Self-Inflicted Damage 108 | . 62 46 Shots 4 | . 2 2 Rammed 2 | . 2 . Targets Rammed 2 | . 2 . Kicked . | . . . Crushed . | . . . Highest Temperature 497 | . 497 307 Average Temperature 138 | . 131 170 Received Heat Transfer 820 | . 423 397 Effects 5 | . 4 1 Shutdowns 3 | . 3 . Energy Bleed 1 | . . 1 Short Circuit 1 | . 1 . Siege Activations . | . . . Martial Activations . | . . . Shielding Activations . | . . . Robots Disrupted . | . . . Combat Hostiles . | . . . Robots Corrupted 1 | . 1 . Combat Hostiles . | . . . Parts Fried 1 | . 1 . Impact Corruptions 1 | . 1 . Robots Melted . | . . . Combat Hostiles . | . . . Parts Melted 2 | . 1 1 Heat Transferred 1555 | . 888 667 Parts Sabotaged . | . . . Parts Stolen . | . . . Parts Stripped . | . . . Power Chain Reactions . | . . . Alert | -11 -10 -10 ------- Run | Yrd Mat Sub Maximum Alert Level 1 | . 1 . Low Security (%) 69 | 100 68 . Level 1 30 | . 31 . Level 2 . | . . . Level 3 . | . . . Level 4 . | . . . Level 5 . | . . . High Security . | . . . Max Security . | . . . Peak Influence 300 | 5 300 . Initial . | . . . Average 119 | 1 123 . Influence Increases 746 | 15 691 40 Destroy 0b10 Robot/C 380 | . 340 40 Destroy 0b10 Robot/NC 80 | 15 65 . Destroy Leader 78 | . 78 . Successful Hack 3 | . 3 . Select Force Hacks 60 | . 60 . Disable Machine 30 | . 30 . Destroy Structure 55 | . 55 . Lose Combat Pursuer 60 | . 60 . Influence Decreases 746 | 15 413 318 Entered New Map 134 | . . 134 Time Decay 594 | 15 403 176 Lost Part 18 | . 10 8 Squads Dispatched 5 | . 5 . Investigation 4 | . 4 . Extermination . | . . . Reinforcement 1 | . 1 . Assault . | . . . Garrison . | . . . Intercept . | . . . Searches Triggered . | . . . Construction Impeded . | . . . Haulers Reinforced . | . . . Active Scanning Responses . | . . . Cargo Convoy Interrupts . | . . . Stealth | -11 -10 -10 --------- Run | Yrd Mat Sub Distress Signals 1 | . 1 . Communications Jammed . | . . . Distress Signals . | . . . Times Spotted 37 | . 26 11 Peak Tracking Total 3 | . 3 3 Tactical Retreats 4 | . 3 1 Traps | -11 -10 -10 ------- Run | Yrd Mat Sub Traps Triggered 6 | . 2 4 Indirectly . | . . . Trap Hack Attempts . | . . . Triggered . | . . . Disarmed . | . . . Reprogrammed . | . . . Reused . | . . . Traps Extracted . | . . . Installed . | . . . Triggered . | . . . Machines | -11 -10 -10 ---------- Run | Yrd Mat Sub Machines Disabled 2 | . 2 . Max in Single Turn 1 | . 1 . Machines Repaired . | . . . Machines Dismantled . | . . . Machines Sabotaged . | . . . Overloaded Fab Kills . | . . . Hacking | -11 -10 -10 --------- Run | Yrd Mat Sub Machines Accessed 11 | . 10 1 Terminals 7 | . 7 . Fabricators . | . . . Repair Stations 1 | . 1 . Recycling Units 2 | . 2 . Scanalyzers . | . . . Garrison Access . | . . . Total Hacks 26 | . 23 3 Successful 8 | . 5 3 Failed 18 | . 18 . Catastrophic 4 | . 4 . Database Lockouts . | . . . Manual 19 | . 19 . Terminals 15 | . 15 . Fabricators . | . . . Repair Stations 4 | . 4 . Recycling Units 4 | . 4 . Scanalyzers . | . . . Garrison Access . | . . . Terminal Hacks 3 | . . 3 Record 3 | . . 3 Fabricator Hacks . | . . . Repair Station Hacks 3 | . 3 . Scan Component 2 | . 2 . Repair 1 | . 1 . Recycling Unit Hacks . | . . . Scanalyzer . | . . . Garrison Access Hacks . | . . . Unauthorized Hacks 2 | . 2 . Terminals . | . . . Fabricators . | . . . Repair Stations . | . . . Recycling Units 2 | . 2 . Tunnel 2 | . 2 . Scanalyzers . | . . . Garrison Access . | . . . Data Cores Recovered . | . . . Used . | . . . Hacking Detections 9 | . 9 . Full Trace Events 2 | . 2 . Feedback Events . | . . . Feedback Blocked . | . . . Robot Schematics Acquired . | . . . Robots Built . | . . . Authchips . | . . . Time . | . . . Total Robot Build Rating . | . . . Part Schematics Acquired . | . . . Parts Built . | . . . Authchips . | . . . Time . | . . . Total Part Build Rating . | . . . Parts Repaired 1 | . 1 . Time 36 | . 36 . Parts Recycled . | . . . Recycled Matter . | . . . Retrieved Matter . | . . . Retrieved Components . | . . . Parts Scanalyzed . | . . . Part Schematics Acquired . | . . . Parts Damaged . | . . . Bothacking | -11 -10 -10 ------------ Run | Yrd Mat Sub Used RIF Installer . | . . . Robots Hacked . | . . . Non-combat . | . . . Combat . | . . . Robot Hacks Applied . | . . . Relay Couplers Released . | . . . Fabnet Peak Effective % . | . . . Robots Rewired . | . . . Allies Hacked . | . . . Hacks Repelled . | . . . Allies | -11 -10 -10 -------- Run | Yrd Mat Sub Total Allies . | . . . Largest Group . | . . . Highest-Rated Group . | . . . Highest-Rated Ally . | . . . Total Orders . | . . . Ally Attacks . | . . . Total Damage . | . . . Kills . | . . . Allies Corrupted . | . . . Allies Melted . | . . . Intel | -11 -10 -10 ------- Run | Yrd Mat Sub Active Infowar (turns) 2339 | 6 750 1583 Terrain 50 | . . 50 Seismic 2289 | 6 750 1533 Robot Analysis Total . | . . . Derelict Logs Recovered . | . . . Drone Launches . | . . . Drone Recoveries . | . . . Exploration | -11 -10 -10 ------------- Run | Yrd Mat Sub Turns Passed 4924 | 69 2302 2553 Spaces Moved 2036 | 11 941 1084 Core . | . . . Treads 1176 | 8 618 550 Legs 28 | 3 25 . Wheels 832 | . 298 534 Hover . | . . . Flight . | . . . Fastest Speed 120 | 120 120 155 Average Speed 200 | 149 198 201 Slowest Speed 250 | 160 240 250 Overloaded Moves . | . . . Propulsion Burnouts . | . . . Robots Hopped . | . . . Potential Cave-ins . | . . . Cave-ins Triggered . | . . . Exploration Rate (%) 53 | 3 99 59 Regions Visited 2 Branch Regions 1 Pre-discovered Areas 4 | . 2 2 Known Exits Taken . | . . . Unknown Exits Taken 2 | 1 1 . Scrap Searched 2 | . . 2 Spaces Dug 5 | . 3 2 Terrain Destroyed 99 | . 65 34 Melee 5 | . 3 2 Projectile . | . . . AOE 94 | . 62 32 Terrain Rammed . | . . . Walls Destroyed . | . . . Machines Disabled . | . . . Actions | -11 -10 -10 --------- Run | Yrd Mat Sub Total 2614 | 38 1221 1355 Wait 293 | 11 122 160 Move 2034 | 10 940 1084 Hop . | . . . Pick Up 43 | 2 31 10 Fast Attach 4 | 1 2 1 Attach 6 | . 2 4 Detach . | . . . Swap 75 | 2 26 47 Drop 25 | . 18 7 Fire 114 | 12 70 32 Melee 18 | . 8 10 Ram . | . . . Kick . | . . . Crush 2 | . 2 . Escape Stasis . | . . . Rewire . | . . . Trap . | . . . Miscellaneous . | . . . Route ------- -11/Scrapyard -10/Materials (discovered 6 exits: [*Mat x3] / [*Min x2] / *Sub) -10/Subcaves (discovered 2 exits: [*Mat] / [*Scr]) History --------- Turn | Location | Event 35 | -11/Scrapyard | Discovered new exit (range 3) 70 | -11/Scrapyard | Entered Materials 71 | -10/Materials | Met a group of wandering Federalists 126 | -10/Materials | Discovered new exit (range 9) 308 | -10/Materials | Build established: Mutant 314 | -10/Materials | Discovered new exit (range 13) 588 | -10/Materials | Discovered new exit (range 15) 1331 | -10/Materials | Discovered new exit (range 13) 1426 | -10/Materials | Discovered new exit (range 8) 1563 | -10/Materials | Repaired Broken Lgt. Treads 1632 | -10/Materials | Core integrity fell below 50% 2352 | -10/Materials | Discovered new exit (range 8) 2372 | -10/Materials | Entered Subcaves 2373 | -10/Subcaves | Continued accompanying wandering Federalists (5) 2377 | -10/Subcaves | Discovered new exit (range 8) 2381 | -10/Subcaves | A swath of the cavern ceiling suddenly collapsed 2644 | -10/Subcaves | Wandering Federalist uncovered a shortcut to Scraptown 2698 | -10/Subcaves | A swath of the cavern ceiling suddenly collapsed 2852 | -10/Subcaves | Learned location of Zion (-7) 2852 | -10/Subcaves | Met a Zionite searching for "candidates" 3298 | -10/Subcaves | Shifting Twisted Machinery released Sub. Laser 3327 | -10/Subcaves | Shifting Twisted Machinery released Spk. Treads 4024 | -10/Subcaves | Ambushed by Subdweller buried in earth 4027 | -10/Subcaves | Ambushed by Subdweller buried in earth 4033 | -10/Subcaves | Core integrity fell below 20% 4090 | -10/Subcaves | Lost 3 parts (1p1n1w) 4891 | -10/Subcaves | Visited Clippyterm 4898 | -10/Subcaves | Learned location of Section 7 (-2) 4925 | -10/Subcaves | Destroyed by Autobeam Turret with Autobeam Last Messages --------------- 04814_ IWDWBP TPDC>NQ%MRSBAQNL/Y&LCB6N1H 04820_ 88-9WX(u) tweaks Twisted Machinery. 04869_ Sub. Power Source shoots sparks and powers down. 04881_ A thin wall crumbles away, revealing a door. 04891_ The door opens automatically. 04898_ Connecting with Clippyterm... 04898_ Current location identified: Subcaves >>Record "Clippyterm" Welcome to Clippyterm v0.53, my misguided attempt to resurrect an ancient AI. I give up. There must be something fundamentally wrong with the algorithm, because no matter how much data I collect to feed it, half the time it still manages to suggest unhelpful sample queries and responses. --DD-NU8 >>Record! "World Domination" It looks like you're trying to take over the world, would you like help? World map updated: -2/Section 7. >>Record! "LU-1G1" It looks like you're researching the legendary digger of dangerously deep tunnels, unfortunately it seems not even members of the Boring Crew know what became of that one. Map ----- +----------------------------------------------------+ | ???????????????? ????????# # ##???????????????## | | ?????????????????????????# # #????????????????## | | ?????????????????????????# "# #????????????????# | | ?????????????????????????#"" # ##???????????????# | | ????????????????????????##"" " #???????????????# | | ????????????????????????# " ##???????????????# | | ???????????????????????## ## ##????????????????# | | ??????????????????????## ####?????????????????## | | ??????????????????????# " #????????????????????# | | ??????????????????????# " #????????????????????? | | ??????????????????????# #????????????????????? | | ??????????????????????# ##???????????????????## | | ????????????????######## ##????????????????????# | | ????????????????#"""""## ###???????????????????# | | ????????????????#""X""## "##?????????????????## | | ????????????????#" "## #?????????????????# | | ????????????????### #### ##??##?????????????### | | ????????????????### ##?# ##?## #???????????????? | | ????????????????# ### ### #???????????????? | | ???????????????## ## #?????????????### | | ??????????????## ## # #????????????## | | ??????????????# # ### #????????????# | | ??????????????# # ## #????????????# | | ??????????????# ######????????# | | ??????????????## ### ?????# # | | ???????????????##??# ## @ ?????# | | ???????????????????## #### "??# & | | ????????????????????###??## ######### "?# | | ?????????????????????????? #???????? ??#" | | ????????????????????????? #?????????"??## | | ???????????????????????? #?????????????# # | | ??????????????????????? ## #???????####### # | | ?????????????????????? ?# #??????## """"" | | ????????????????????? ??## ##?????## """" | | ???????????????????? ???## #??????# "# | | ????????????????????? ?????#?? ????????#""""""### | | ?????????????????????????????????????????# #?? | | ??????????????????????????????????????#### #?? | | ?????????????????????????????????????## ### ##?? | | ?????????????????????????????????????# ### #?? | | ?????????????????????????????????????# ## "#?# | | ?????????????????????????????????????## ""### | | ??????????????????????????????????????## " | | ???????????????????????????????????????# " | | ???????????????????????????????????????## ## | | ????????????????????????????????????????### ####? | | ??????????????????????????????????????????## #???? | | ???????????????????????????????????????????###???? | | ?????????????????????????????????????????????????? | | ?????????????????????????????????????????????????? | +----------------------------------------------------+ Best States ------------- Heat Dissipation 25 Energy Generation 15 Energy Capacity 280 Matter Stores 300 Matter Capacity 300 Sight Range 16 Terrain Scan Range 16 Terrain Scan Density 10 Armor Coverage 150 Evasion (%) 55 Recoil Reduction 2 Item Schematics ----------------- None Robot Schematics ------------------ None Fabricated ------------ Nothing Repaired ---------- Lgt. Treads | 16% | -10/Materials | Broken Alien Tech Used ----------------- None Achievements -------------- None Challenges ------------ None Game ------ Seed MicroCorruptionCutter Manual? 0 Play Time 00:33:28 Cumulative 171.8 hours Start 2025.05.18 @ 19:05:56 End 2025.05.18 @ 19:41:42 Sessions 3 Manual Loads 0 Difficulty Rogue Special Mode None Game No. 23 Rogue 16 Adventurer 4 Explorer 3 Win Type - Total 17 Types 10/1/2/0/0/0/1/2/0/1 Lore% 63 Gallery% 73 Achievement% 67 Wizard Run 0 Options --------- Layout 0 ASCII 0 Keyboard 0 Movement Mouse Keybinds 0 Fullscreen 1 Font 18/TerminusBold Map View 76x50 Zoom Use 0% Tactical HUD 1 Map Filters NONE Filters NONE Steam 1 RUN: dc483afc-d69f-4628-88a0-8384c205e413